fUSD/lending_fUSD_20250115
["ID","MTS","AMOUNT","RATE_DAILY","PERIOD"]
[348975441,1736911833284,-500.0,9.997e-05,2]
[348975443,1736911833298,-513.90711409,9.997e-05,2]
[348975445,1736911833313,-500.0,9.997e-05,2]
[348975448,1736911833323,-500.0,9.997e-05,2]
[348975451,1736911833333,-500.0,9.997e-05,2]
[348975454,1736911833343,-1123.64828011,9.997e-05,2]
[348975458,1736911833355,-500.0,9.997e-05,2]
[348975460,1736911833364,-963.53,9.997e-05,2]
[348975463,1736911833374,-500.0,9.997e-05,2]
[348975466,1736911833384,-500.0,9.997e-05,2]
[348975468,1736911833395,-500.0,9.997e-05,2]
[348975472,1736911833405,-500.0,9.997e-05,2]
[348975476,1736911833414,-1285.74,9.997e-05,2]
[348975477,1736911833424,-500.0,9.997e-05,2]
[348975480,1736911833434,-500.0,9.997e-05,2]
[348975484,1736911833445,-500.0,9.997e-05,2]
[348975487,1736911833455,-500.0,9.997e-05,2]
[348975489,1736911833465,-500.0,9.997e-05,2]
[348975493,1736911833475,-500.0,9.997e-05,2]
[348975495,1736911833485,-500.0,9.997e-05,2]
[348975498,1736911833495,-500.0,9.997e-05,2]
[348975501,1736911833504,-500.0,9.997e-05,2]
[348975503,1736911833514,-500.0,9.997e-05,2]
[348975505,1736911833524,-524.17525601,9.997e-05,2]
[348975507,1736911833536,-500.0,9.997e-05,2]
[348975511,1736911833546,-500.0,9.997e-05,2]
[348975514,1736911833556,-500.0,9.997e-05,2]
[348975516,1736911833565,-500.0,9.997e-05,2]
[348975519,1736911833575,-500.0,9.997e-05,2]
[348975522,1736911833585,-913.47,9.997e-05,2]
[348975525,1736911833595,-500.0,9.997e-05,2]
[348975528,1736911833605,-88.53774861,9.997e-05,2]
[348975533,1736911833618,-411.46225139,9.997e-05,2]
[348975536,1736911833627,-500.0,9.997e-05,2]
[348975539,1736911833637,-500.0,9.997e-05,2]
[348975542,1736911833647,-500.0,9.997e-05,2]
[348975545,1736911833657,-1344.5,9.997e-05,2]
[348975548,1736911833667,-500.0,9.997e-05,2]
[348975550,1736911833677,-500.0,9.997e-05,2]
[348975553,1736911833686,-500.0,9.997e-05,2]
[348975557,1736911833696,-2000.0,9.999e-05,2]
[348975560,1736911833707,-200.0,9.999e-05,2]
[348975563,1736911833718,-500.0,9.999e-05,2]
[348975566,1736911833728,-500.0,9.999e-05,2]
[348975568,1736911833737,-500.0,9.999e-05,2]
[348975571,1736911833747,-251.93645783,9.999e-05,2]
[348975574,1736911833757,-519.07864277,9.999e-05,2]
[348975577,1736911833767,-500.0,9.999e-05,2]
[348975579,1736911833777,-500.0,9.999e-05,2]
[348975582,1736911833788,-500.0,9.999e-05,2]
[348975585,1736911833798,-500.0,9.999e-05,2]
[348975589,1736911833807,-346.89550023,9.999e-05,2]
[348975593,1736911833819,-153.10449977,9.999e-05,2]
[348975596,1736911833829,-500.0,9.999e-05,2]
[348975599,1736911833839,-553.60391862,9.999e-05,2]
[348975602,1736911833849,-251.21076127,9.999e-05,2]
[348975605,1736911833859,-500.0,9.999e-05,2]
[348975608,1736911833868,-500.0,9.999e-05,2]
[348975611,1736911833877,-500.0,9.999e-05,2]
[348975614,1736911833887,-500.0,9.999e-05,2]
[348975617,1736911833896,-500.0,9.999e-05,2]
[348975620,1736911833905,-500.0,9.999e-05,2]
[348975623,1736911833915,-500.0,9.999e-05,2]
[348975626,1736911833925,-500.0,9.999e-05,2]
[348975629,1736911833934,-367.14263721,9.999e-05,2]
[348975632,1736911833944,-514.89304326,9.999e-05,2]
[348975634,1736911833955,-500.0,9.999e-05,2]
[348975638,1736911833964,-517.0655212,9.999e-05,2]
[348975640,1736911833974,-519.64995596,9.999e-05,2]
[348975643,1736911833983,-500.0,9.999e-05,2]
[348975647,1736911833993,-500.0,9.999e-05,2]
[348975649,1736911834003,-500.0,9.999e-05,2]
[348975653,1736911834013,-500.0,9.999e-05,2]
[348975656,1736911834023,-500.0,9.999e-05,2]
[348975659,1736911834034,-500.0,9.999e-05,2]
[348975662,1736911834044,-500.0,9.999e-05,2]
[348975664,1736911834054,-540.59527321,9.999e-05,2]
[348975667,1736911834064,-500.0,9.999e-05,2]
[348975670,1736911834074,-500.0,9.999e-05,2]
[348975673,1736911834084,-500.0,9.999e-05,2]
[348975676,1736911834093,-500.0,9.999e-05,2]
[348975679,1736911834102,-500.0,9.999e-05,2]
[348975682,1736911834112,-500.0,9.999e-05,2]
[348975685,1736911834122,-500.0,9.999e-05,2]
[348975688,1736911834131,-500.0,9.999e-05,2]
[348975690,1736911834141,-500.0,9.999e-05,2]
[348975692,1736911834151,-500.0,9.999e-05,2]
[348975694,1736911834161,-520.93288934,9.999e-05,2]
[348975697,1736911834171,-318.47861026,9.999e-05,2]
[348975700,1736911834181,-500.0,9.999e-05,2]
[348975703,1736911834191,-500.0,9.999e-05,2]
[348975706,1736911834201,-500.0,9.999e-05,2]
[348975709,1736911834210,-500.0,9.999e-05,2]
[348975712,1736911834220,-500.0,9.999e-05,2]
[348975715,1736911834229,-500.0,9.999e-05,2]
[348975717,1736911834241,-500.0,9.999e-05,2]
[348975719,1736911834251,-522.20906444,9.999e-05,2]
[348975721,1736911834262,-500.0,9.999e-05,2]
[348975723,1736911834272,-500.0,9.999e-05,2]
[348975725,1736911834283,-500.0,9.999e-05,2]
[348975727,1736911834296,-500.0,9.999e-05,2]
[348975729,1736911834311,-500.0,9.999e-05,2]
[348975731,1736911834320,-500.0,9.999e-05,2]
[348975733,1736911834329,-500.0,9.999e-05,2]
[348975735,1736911834339,-500.0,9.999e-05,2]
[348975737,1736911834348,-518.05819237,9.999e-05,2]
[348975739,1736911834359,-511.54698386,9.999e-05,2]
[348975741,1736911834368,-248.75883697,9.999e-05,2]
[348975743,1736911834378,-500.0,9.999e-05,2]
[348975745,1736911834390,-500.0,9.999e-05,2]
[348975747,1736911834400,-500.0,9.999e-05,2]
[348975749,1736911834409,-282.28380683,9.999e-05,2]
[348975751,1736911834418,-500.0,9.999e-05,2]
[348975753,1736911834428,-500.0,9.999e-05,2]
[348975754,1736911834437,-500.0,9.999e-05,2]
[348975756,1736911834447,-601.53525675,9.999e-05,2]
[348975758,1736911834456,-500.0,9.999e-05,2]
[348975760,1736911834465,-500.0,9.999e-05,2]
[348975762,1736911834474,-500.0,9.999e-05,2]
[348975764,1736911834484,-500.0,9.999e-05,2]
[348975766,1736911834493,-176.758972,9.999e-05,2]
[348975768,1736911834503,-500.0,9.999e-05,2]
[348975770,1736911834513,-500.0,9.999e-05,2]
[348975772,1736911834522,-500.0,9.999e-05,2]
[348975775,1736911834531,-500.0,9.999e-05,2]
[348975777,1736911834541,-185.722918,9.999e-05,2]
[348975779,1736911834551,-500.0,9.999e-05,2]
[348975781,1736911834561,-500.0,9.999e-05,2]
[348975782,1736911834570,-500.0,9.999e-05,2]
[348975784,1736911834580,-500.0,9.999e-05,2]
[348975786,1736911834589,-500.0,9.999e-05,2]
[348975788,1736911834598,-506.4735112,9.999e-05,2]
[348975790,1736911834607,-500.0,9.999e-05,2]
[348975792,1736911834616,-426.16063266,9.999e-05,2]
[348975794,1736911834626,-500.0,9.999e-05,2]
[348975797,1736911834636,-500.0,9.999e-05,2]
[348975798,1736911834645,-506.53694966,9.999e-05,2]
[348975801,1736911834654,-500.0,9.999e-05,2]
[348975803,1736911834664,-500.0,9.999e-05,2]
[348975804,1736911834673,-500.0,9.999e-05,2]
[348975807,1736911834683,-516.4305459,9.999e-05,2]
[348975809,1736911834692,-500.0,9.999e-05,2]
[348975810,1736911834701,-500.0,9.999e-05,2]
[348975812,1736911834711,-500.0,9.999e-05,2]
[348975814,1736911834720,-500.0,9.999e-05,2]
[348975816,1736911834730,-500.0,9.999e-05,2]
[348975819,1736911834739,-500.0,9.999e-05,2]
[348975821,1736911834748,-500.0,9.999e-05,2]
[348975822,1736911834757,-500.0,9.999e-05,2]
[348975825,1736911834767,-500.0,9.999e-05,2]
[348975827,1736911834777,-515.55530612,9.999e-05,2]
[348975829,1736911834788,-500.0,9.999e-05,2]
[348975831,1736911834798,-500.0,9.999e-05,2]
[348975833,1736911834808,-500.0,9.999e-05,2]
[348975834,1736911834817,-500.0,9.999e-05,2]
[348975836,1736911834826,-500.0,9.999e-05,2]
[348975839,1736911834836,-1000.0,9.999e-05,2]
[348975841,1736911834845,-500.0,9.999e-05,2]
[348975843,1736911834855,-500.0,9.999e-05,2]
[348975845,1736911834864,-500.0,9.999e-05,2]
[348975847,1736911834873,-500.0,9.999e-05,2]
[348975848,1736911834883,-500.0,9.999e-05,2]
[348975850,1736911834892,-500.0,9.999e-05,2]
[348975852,1736911834901,-500.0,9.999e-05,2]
[348975855,1736911834913,-500.0,9.999e-05,2]
[348975856,1736911834923,-1490.48,9.999e-05,2]
[348975859,1736911834933,-500.0,9.999e-05,2]
[348975861,1736911834942,-500.0,9.999e-05,2]
[348975862,1736911834952,-500.0,9.999e-05,2]
[348975864,1736911834961,-500.0,9.999e-05,2]
[348975866,1736911834971,-500.0,9.999e-05,2]
[348975868,1736911834981,-500.0,9.999e-05,2]
[348975870,1736911834990,-500.0,9.999e-05,2]
[348975871,1736911834998,-500.0,9.999e-05,2]
[348975872,1736911835007,-500.0,9.999e-05,2]
[348975873,1736911835016,-500.0,9.999e-05,2]
[348975874,1736911835025,-500.0,9.999e-05,2]
[348975875,1736911835035,-500.0,9.999e-05,2]
[348975876,1736911835044,-509.26659962,9.999e-05,2]
[348975877,1736911835052,-420.55361529,9.999e-05,2]
[348975878,1736911835067,-79.44638471,9.999e-05,2]
[348975879,1736911835076,-500.0,9.999e-05,2]
[348975881,1736911835085,-462.31408606,9.999e-05,2]
[348975884,1736911835097,-37.68591394,9.999e-05,2]
[348975886,1736911835106,-500.0,9.999e-05,2]
[348975888,1736911835116,-500.0,9.999e-05,2]
[348975890,1736911835125,-500.0,9.999e-05,2]
[348975892,1736911835134,-500.0,9.999e-05,2]
[348975893,1736911835143,-500.0,9.999e-05,2]
[348975896,1736911835153,-531.22901612,9.999e-05,2]
[348975897,1736911835162,-500.0,9.999e-05,2]
[348975899,1736911835172,-500.0,9.999e-05,2]
[348975901,1736911835181,-500.0,9.999e-05,2]
[348975903,1736911835190,-454.6307533,9.999e-05,2]
[348975907,1736911835217,-45.3692467,9.999e-05,2]
[348975909,1736911835226,-669.39,9.999e-05,2]
[348975911,1736911835235,-516.16973636,9.999e-05,2]
[348975913,1736911835245,-500.0,9.999e-05,2]
[348975915,1736911835254,-77.63101032,9.999e-05,2]
[348975917,1736911835266,-422.36898968,9.999e-05,2]
[348975919,1736911835275,-500.0,9.999e-05,2]
[348975921,1736911835285,-500.0,9.999e-05,2]
[348975923,1736911835296,-634.95,9.999e-05,2]
[348975925,1736911835310,-500.0,9.999e-05,2]
[348975927,1736911835319,-635.75,9.999e-05,2]
[348975929,1736911835329,-500.0,9.999e-05,2]
[348975931,1736911835338,-500.0,9.999e-05,2]
[348975933,1736911835349,-500.0,9.999e-05,2]
[348975935,1736911835358,-500.0,9.999e-05,2]
[348975937,1736911835367,-206.39745032,9.999e-05,2]
[348976243,1736911838411,-293.60254968,9.999e-05,2]
[348976245,1736911838421,-500.0,9.999e-05,2]
[348976247,1736911838430,-500.0,9.999e-05,2]
[348976249,1736911838439,-500.0,9.999e-05,2]
[348976252,1736911838449,-500.0,9.999e-05,2]
[348976254,1736911838459,-500.0,9.999e-05,2]
[348976255,1736911838468,-500.0,9.999e-05,2]
[348976258,1736911838477,-500.0,9.999e-05,2]
[348976259,1736911838486,-500.0,9.999e-05,2]
[348976261,1736911838496,-500.0,9.999e-05,2]
[348976264,1736911838505,-500.0,9.999e-05,2]
[348976265,1736911838514,-500.0,9.999e-05,2]
[348976266,1736911838523,-500.0,9.999e-05,2]
[348976267,1736911838534,-500.0,9.999e-05,2]
[348976268,1736911838544,-500.0,9.999e-05,2]
[348976269,1736911838553,-500.0,9.999e-05,2]
[348976270,1736911838562,-500.0,9.999e-05,2]
[348976271,1736911838570,-500.0,9.999e-05,2]
[348976272,1736911838579,-500.0,9.999e-05,2]
[348976274,1736911838588,-1231.11,9.999e-05,2]
[348976275,1736911838597,-500.0,9.999e-05,2]
[348976277,1736911838606,-500.0,9.999e-05,2]
[348976279,1736911838615,-510.06248123,9.999e-05,2]
[348976281,1736911838624,-500.0,9.999e-05,2]
[348976283,1736911838633,-500.0,9.999e-05,2]
[348976285,1736911838642,-500.0,9.999e-05,2]
[348976287,1736911838651,-500.0,9.999e-05,2]
[348976290,1736911838661,-500.0,9.999e-05,2]
[348976291,1736911838670,-500.0,9.999e-05,2]
[348976294,1736911838680,-500.0,9.999e-05,2]
[348976296,1736911838690,-500.0,9.999e-05,2]
[348976298,1736911838699,-500.0,9.999e-05,2]
[348976299,1736911838708,-500.0,9.999e-05,2]
[348976302,1736911838718,-500.0,9.999e-05,2]
[348976304,1736911838727,-500.0,9.999e-05,2]
[348976305,1736911838736,-90.89894512,9.999e-05,2]
[348976308,1736911838748,-150.90314075,9.999e-05,2]
[348976310,1736911838757,-500.0,9.999e-05,2]
[348976312,1736911838766,-500.0,9.999e-05,2]
[348976314,1736911838775,-500.0,9.999e-05,2]
[348976316,1736911838786,-604.33,9.999e-05,2]
[348976318,1736911838795,-500.0,9.999e-05,2]
[348976320,1736911838805,-508.05577665,9.999e-05,2]
[348976322,1736911838815,-556.18,9.999e-05,2]
[348976323,1736911838823,-500.0,9.999e-05,2]
[348976325,1736911838833,-506.63146169,9.999e-05,2]
[348976327,1736911838842,-500.0,9.999e-05,2]
[348976330,1736911838851,-223.46322213,9.999e-05,2]
[348976332,1736911838861,-523.02793053,9.999e-05,2]
[348976334,1736911838870,-500.0,9.999e-05,2]
[348976336,1736911838879,-500.0,9.999e-05,2]
[348976338,1736911838888,-500.0,9.999e-05,2]
[348976340,1736911838897,-500.0,9.999e-05,2]
[348976341,1736911838906,-500.0,9.999e-05,2]
[348976343,1736911838917,-500.0,9.999e-05,2]
[348976346,1736911838926,-500.0,9.999e-05,2]
[348976347,1736911838935,-500.0,9.999e-05,2]
[348976349,1736911838945,-500.0,9.999e-05,2]
[348976351,1736911838954,-500.0,9.999e-05,2]
[348976353,1736911838963,-507.34625254,9.999e-05,2]
[348976355,1736911838973,-514.17489217,9.999e-05,2]
[348976358,1736911838983,-500.0,9.999e-05,2]
[348976359,1736911838993,-500.0,9.999e-05,2]
[348976362,1736911839002,-500.0,9.999e-05,2]
[348976364,1736911839011,-500.0,9.999e-05,2]
[348976366,1736911839021,-500.0,9.999e-05,2]
[348976368,1736911839032,-509.14436426,9.999e-05,2]
[348976370,1736911839042,-508.0831575,9.999e-05,2]
[348976372,1736911839051,-500.0,9.999e-05,2]
[348976374,1736911839059,-500.0,9.999e-05,2]
[348976376,1736911839069,-500.0,9.999e-05,2]
[348976378,1736911839078,-500.0,9.999e-05,2]
[348976379,1736911839087,-500.0,9.999e-05,2]
[348976381,1736911839096,-500.0,9.999e-05,2]
[348976383,1736911839107,-500.0,9.999e-05,2]
[348976386,1736911839118,-500.0,9.999e-05,2]
[348976388,1736911839127,-500.0,9.999e-05,2]
[348976390,1736911839137,-500.0,9.999e-05,2]
[348976392,1736911839146,-500.0,9.999e-05,2]
[348976394,1736911839155,-500.0,9.999e-05,2]
[348976395,1736911839165,-502.64076456,9.999e-05,2]
[348976398,1736911839174,-500.0,9.999e-05,2]
[348976400,1736911839184,-505.93288184,9.999e-05,2]
[348976402,1736911839195,-500.0,9.999e-05,2]
[348976404,1736911839205,-500.0,9.999e-05,2]
[348976406,1736911839215,-500.0,9.999e-05,2]
[348976408,1736911839224,-465.95952299,9.999e-05,2]
[348976410,1736911839234,-500.0,9.999e-05,2]
[348976412,1736911839243,-500.0,9.999e-05,2]
[348976414,1736911839252,-513.87972522,9.999e-05,2]
[348976416,1736911839263,-510.48658295,9.999e-05,2]
[348976418,1736911839273,-580.2564197,9.999e-05,2]
[348976420,1736911839283,-500.0,9.999e-05,2]
[348976422,1736911839294,-500.0,9.999e-05,2]
[348976424,1736911839308,-500.0,9.999e-05,2]
[348976426,1736911839318,-500.0,9.999e-05,2]
[348976428,1736911839328,-500.0,9.999e-05,2]
[348976430,1736911839338,-500.0,9.999e-05,2]
[348976432,1736911839350,-500.0,9.999e-05,2]
[348976452,1736911839528,-711.77,9.999e-05,2]
[348976454,1736911839540,-500.0,9.999e-05,2]
[348976456,1736911839549,-500.0,9.999e-05,2]
[348976458,1736911839558,-500.0,9.999e-05,2]
[348976460,1736911839567,-672.28,9.999e-05,2]
[348976462,1736911839578,-500.0,9.999e-05,2]
[348976464,1736911839587,-500.0,9.999e-05,2]
[348976466,1736911839596,-501.55349214,9.999e-05,2]
[348976468,1736911839605,-500.0,9.999e-05,2]
[348976470,1736911839614,-500.0,9.999e-05,2]
[348976472,1736911839623,-500.0,9.999e-05,2]
[348976474,1736911839633,-500.0,9.999e-05,2]
[348976476,1736911839643,-500.0,9.999e-05,2]
[348976478,1736911839652,-500.0,9.999e-05,2]
[348976480,1736911839661,-500.0,9.999e-05,2]
[348976482,1736911839670,-500.0,9.999e-05,2]
[348976484,1736911839680,-2474348.64362019,0.0001,2]
[348976486,1736911839689,-60777.7295215,0.0001,2]
[348976488,1736911839698,-187.37383868,0.0001,2]
[348976490,1736911839707,-374.19933473,0.0001,2]
[348976492,1736911839717,-560.70167751,0.0001,2]
[348976494,1736911839727,-500.0,0.0001,2]
[348976496,1736911839735,-3000.0,0.0001,2]
[348976498,1736911839745,-388.59014018,0.0001,2]
[348976500,1736911839754,-1765540.28403556,0.0001,2]
[348976502,1736911839766,-180810.51444227,0.0001,2]
[348976505,1736911839785,-42912.03224951,0.0001,2]
[348976554,1736911840321,-502.22732879,9.999e-05,2]
[348976557,1736911840331,-500.0,9.999e-05,2]
[348976560,1736911840341,-1244.50351121,0.0001,2]
[348976563,1736911840353,-13540.86711263,0.0001,2]
[348976565,1736911840364,-527.41662494,0.0001,2]
[348976567,1736911840376,-288.8230659,0.0001,2]
[348976589,1736911840576,-665610.13696256,0.0001,2]
[348976591,1736911840587,-31999.64354899,0.0001,2]
[348976593,1736911840599,-2744.6,0.0001,2]
[348976595,1736911840610,-9902.4348022,0.0001,2]
[348976597,1736911840621,-972.01375701,0.0001,2]
[348976600,1736911840632,-1313.08675054,0.0001,2]
[348976602,1736911840644,-283.21583984,0.0001,2]
[348976604,1736911840656,-309.63430455,0.0001,2]
[348976606,1736911840667,-973.08,0.0001,2]
[348976609,1736911840678,-3854.00000001,0.0001,2]
[348976611,1736911840689,-2454.873683,0.0001,2]
[348976613,1736911840700,-733.60120769,0.0001,2]
[348976626,1736911840812,-4385.44406825,0.0001,2]
[348976628,1736911840823,-306.03929666,0.0001,2]
[348976630,1736911840834,-4709.29051433,0.0001,2]
[348976632,1736911840845,-512.10078731,0.0001,2]
[348976635,1736911840856,-1203.86999937,0.0001,2]
[348976908,1736911843478,-500.0,9.999e-05,2]
[348976910,1736911843487,-208.96319956,9.999e-05,2]
[348976912,1736911843498,-291.03680044,9.999e-05,2]
[348976915,1736911843508,-1428.38,9.999e-05,2]
[348976917,1736911843517,-77112.74009929,0.0001,2]
[348976920,1736911843528,-8676.32477536,0.0001,2]
[348976939,1736911843706,-906.71707361,0.0001,2]
[348976941,1736911843718,-120010.0,0.0001,2]
[348976943,1736911843729,-306.06,0.0001,2]
[348976945,1736911843740,-9782.1,0.0001,2]
[348977187,1736911846307,-500.0,9.999e-05,2]
[348977190,1736911846317,-8.75773403,9.999e-05,2]
[348977194,1736911846329,-527.47291408,9.999e-05,2]
[348977197,1736911846339,-4.72594931,9.999e-05,2]
[348977232,1736911846598,-495.27405069,9.999e-05,2]
[348977234,1736911846607,-77.78039117,0.0001,2]
[348977236,1736911846618,-1994154.4059604,0.0001,2]
[348977238,1736911846630,-129766.64257747,0.0001,2]
[348977240,1736911846639,-51415.65855391,0.0001,2]
[348977243,1736911846650,-1886.86235768,0.0001,2]
[348977258,1736911846850,-500.0,9.999e-05,2]
[348977260,1736911846860,-704.3930419,0.0001,2]
[348979459,1736911904391,184.97,8.219e-05,2]
[348979463,1736912805084,175.72,8.219e-05,2]
[348979476,1736913032627,-250.0,8.921e-05,2]
[348979477,1736913032637,-328.9,9.017e-05,2]
[348979478,1736913032647,-169.87,9.1e-05,2]
[348979479,1736913032656,-250.0,9.153e-05,2]
[348979480,1736913032666,-200.0,9.188e-05,2]
[348979481,1736913032675,-456.23,9.286e-05,2]
[348979482,1736913032685,-731.61,9.288e-05,2]
[348979483,1736913032697,-201.05641383,9.288e-05,2]
[348979484,1736913032707,-1916.05,9.311e-05,2]
[348979485,1736913032716,-150.0,9.342e-05,2]
[348979486,1736913032725,-500.0,9.358e-05,2]
[348979487,1736913032737,-168.22,9.463e-05,2]
[348979488,1736913032746,-201.05641381,9.594e-05,2]
[348979489,1736913032756,-215.3616839,9.8e-05,2]
[348979490,1736913032766,-300.0,9.898e-05,2]
[348979491,1736913032775,-1000.0,9.899e-05,2]
[348979492,1736913032784,-311.6762,9.899e-05,2]
[348979493,1736913032794,-265.6637,9.899e-05,2]
[348979494,1736913032803,-4861.3293,9.899e-05,2]
[348979495,1736913032812,-150.0,9.899e-05,2]
[348979496,1736913032821,-7544.98721945,9.9e-05,2]
[348979497,1736913032833,-42489.27348055,9.9e-05,2]
[348979498,1736913032842,-936.37356675,9.9e-05,2]
[348979499,1736913032852,-201.05641381,9.9e-05,2]
[348979500,1736913032861,-500.0,9.997e-05,2]
[348979501,1736913032870,-500.0,9.997e-05,2]
[348979502,1736913032879,-500.0,9.997e-05,2]
[348979503,1736913032888,-500.0,9.997e-05,2]
[348979504,1736913032897,-386.84,9.997e-05,2]
[348979505,1736913032908,-500.0,9.997e-05,2]
[348979506,1736913032918,-500.0,9.997e-05,2]
[348979507,1736913032928,-1000.0,9.997e-05,2]
[348979508,1736913032940,-500.0,9.997e-05,2]
[348979509,1736913032950,-500.0,9.997e-05,2]
[348979510,1736913032959,-500.0,9.997e-05,2]
[348979511,1736913032968,-500.0,9.997e-05,2]
[348979519,1736913033173,-504.58658975,9.999e-05,2]
[348979520,1736913033183,-176.758972,9.999e-05,2]
[348979521,1736913033193,-185.722918,9.999e-05,2]
[348979522,1736913033203,-500.0,9.999e-05,2]
[348979523,1736913033212,-500.0,9.999e-05,2]
[348979524,1736913033221,-517.55402592,9.999e-05,2]
[348979525,1736913033233,-510.79,9.999e-05,2]
[348979526,1736913033242,-500.0,9.999e-05,2]
[348979527,1736913033252,-218.3,9.999e-05,2]
[348979528,1736913033262,-500.0,9.999e-05,2]
[348979529,1736913033271,-500.0,9.999e-05,2]
[348979530,1736913033280,-500.0,9.999e-05,2]
[348979531,1736913033289,-500.0,9.999e-05,2]
[348979532,1736913033299,-500.0,9.999e-05,2]
[348979533,1736913033309,-500.0,9.999e-05,2]
[348979534,1736913033319,-500.0,9.999e-05,2]
[348979535,1736913033332,-500.0,9.999e-05,2]
[348979536,1736913033341,-517.88483289,9.999e-05,2]
[348979537,1736913033351,-500.0,9.999e-05,2]
[348979538,1736913033362,-500.0,9.999e-05,2]
[348979539,1736913033371,-500.0,9.999e-05,2]
[348979540,1736913033380,-500.0,9.999e-05,2]
[348979541,1736913033390,-500.0,9.999e-05,2]
[348979542,1736913033400,-500.0,9.999e-05,2]
[348979544,1736913033409,-500.0,9.999e-05,2]
[348979546,1736913033419,-500.0,9.999e-05,2]
[348979548,1736913033428,-500.0,9.999e-05,2]
[348979549,1736913033437,-500.0,9.999e-05,2]
[348979550,1736913033446,-500.0,9.999e-05,2]
[348979551,1736913033456,-500.0,9.999e-05,2]
[348979552,1736913033465,-500.0,9.999e-05,2]
[348979553,1736913033475,-500.0,9.999e-05,2]
[348979554,1736913033485,-500.0,9.999e-05,2]
[348979555,1736913033495,-500.0,9.999e-05,2]
[348979556,1736913033505,-500.0,9.999e-05,2]
[348979557,1736913033514,-523.55407148,9.999e-05,2]
[348979558,1736913033524,-500.0,9.999e-05,2]
[348979559,1736913033533,-500.0,9.999e-05,2]
[348979560,1736913033543,-531.85486768,9.999e-05,2]
[348979561,1736913033552,-500.0,9.999e-05,2]
[348979562,1736913033562,-602.75410366,9.999e-05,2]
[348979563,1736913033572,-500.0,9.999e-05,2]
[348979564,1736913033584,-500.0,9.999e-05,2]
[348979565,1736913033594,-500.0,9.999e-05,2]
[348979566,1736913033603,-500.0,9.999e-05,2]
[348979567,1736913033613,-514.50614265,9.999e-05,2]
[348979568,1736913033623,-500.0,9.999e-05,2]
[348979569,1736913033632,-500.0,9.999e-05,2]
[348979570,1736913033642,-500.0,9.999e-05,2]
[348979571,1736913033651,-500.0,9.999e-05,2]
[348979572,1736913033661,-500.0,9.999e-05,2]
[348979573,1736913033670,-500.0,9.999e-05,2]
[348979574,1736913033679,-500.0,9.999e-05,2]
[348979575,1736913033690,-500.0,9.999e-05,2]
[348979576,1736913033703,-500.0,9.999e-05,2]
[348979577,1736913033713,-500.0,9.999e-05,2]
[348979578,1736913033723,-310.6778149,9.999e-05,2]
[348979579,1736913033733,-500.0,9.999e-05,2]
[348979580,1736913033743,-500.0,9.999e-05,2]
[348979581,1736913033753,-346.79596824,9.999e-05,2]
[348979582,1736913033762,-500.0,9.999e-05,2]
[348979583,1736913033774,-500.0,9.999e-05,2]
[348979584,1736913033784,-534.32877803,9.999e-05,2]
[348979585,1736913033794,-500.0,9.999e-05,2]
[348979586,1736913033803,-500.0,9.999e-05,2]
[348979587,1736913033813,-500.0,9.999e-05,2]
[348979588,1736913033826,-531.84887645,9.999e-05,2]
[348979589,1736913033834,-500.0,9.999e-05,2]
[348979590,1736913033843,-500.0,9.999e-05,2]
[348979591,1736913033854,-282.93173914,9.999e-05,2]
[348979592,1736913033863,-500.0,9.999e-05,2]
[348979593,1736913033872,-500.0,9.999e-05,2]
[348979594,1736913033882,-500.0,9.999e-05,2]
[348979595,1736913033891,-500.0,9.999e-05,2]
[348979596,1736913033900,-500.0,9.999e-05,2]
[348979597,1736913033909,-500.0,9.999e-05,2]
[348979598,1736913033919,-500.0,9.999e-05,2]
[348979599,1736913033928,-500.0,9.999e-05,2]
[348979600,1736913033938,-183.82416512,9.999e-05,2]
[348979601,1736913033947,-500.0,9.999e-05,2]
[348979602,1736913033956,-523.02037697,9.999e-05,2]